[Event "CRO-ch Youth U19 2020"]
[Site "Vinkovci"]
[Date "2020.07.29"]
[Round "3.14"]
[White "Dasic, Jelena"]
[Black "Muha, Magdalena"]
[Result "1/2-1/2"]
[ECO "D00"]
[WhiteElo "1814"]
[BlackElo "1720"]
[Annotator "NA"]
[PlyCount "75"]
[EventDate "2020.07.28"]
[EventType "swiss"]
[EventCountry "CRO"]
[SourceTitle "playchess.com"]
[Source "ChessBase"]
[SourceQuality "1"]
[TimeControl "5400+30"]

1. d4 {[%emt 0:01:30]} d5 {[%emt 0:00:30]} 2. Bf4 {[%emt 0:00:00]} Nf6 {[%emt 0:00:00]} 3. c3 {[%emt 0:00:00]} c5 {[%emt 0:02:00]} 4. e3 {[%emt 0:00:00]} Nc6 {[%emt 0:00:00]} 5. h3 {[%emt 0:00:00]} Qb6 {[%emt 0:04:00]} 6. Qc2 {[%emt 0:00:30] [#] D00: 1 d4 d5: Unusual lines.} Bf5 $146 {[%emt 0:01:30]} ({Predecessor:} 6... cxd4 7. exd4 Bf5 8. Qxf5 Qxb2 9. Ne2 e6 10. Qd3 Ne4 11. Bc1 Qxa1 12. f3 Nb4 {0-1 (37) Luba,L (2130)-Gierulski,K (2219) Jastrzebia Gora 2018}) 7. dxc5 {[%emt 0:07:30]} Bxc2 {[%emt 0:01:30]} 8. cxb6 {[%emt 0:00:00]} e5 {[%emt 0:04:30]} 9. Bh2 {[%emt 0:02:00]} axb6 {[%emt 0:06:30]} 10. a3 {[%emt 0:05:30]} d4 {[%emt 0:08:30]} 11. exd4 {[%emt 0:01:30]} exd4 {[%emt 0:03:30]} 12. Ne2 $2 {[%emt 0:02:30]} (12. Bb5 $15) 12... d3 {[%emt 0:15:30]} 13. Nd4 {[%emt 0:01:30] [#]} Nxd4 $1 {[%emt 0:00:30]} 14. cxd4 {[%emt 0:00:00]} Bb4+ {[%emt 0:03:30]} 15. Nd2 {[%emt 0:00:00]} O-O {[%emt 0:02:30]} 16. Rc1 {[%emt 0:02:30]} Rfe8+ {[%emt 0:03:30]} 17. Be5 {[%emt 0:00:00]} Bxd2+ {[%emt 0:02:30]} 18. Kxd2 {[%emt 0:00:00]} Ne4+ {[%emt 0:00:30]} 19. Ke3 {[%emt 0:00:30]} d2 {[%emt 0:00:30]} 20. Bb5 {[%emt 0:00:30]} dxc1=Q+ {[%emt 0:00:30]} 21. Rxc1 {[%emt 0:00:00]} Rec8 {[%emt 0:00:30]} 22. Bd7 {[%emt 0:00:00]} Rd8 {[%emt 0:06:30]} 23. Rxc2 {[%emt 0:02:30]} Rxd7 {[%emt 0:00:00]} 24. Kxe4 {[%emt 0:01:30]} f6 {[%emt 0:01:00]} 25. Bf4 {[%emt 0:02:30]} Kf7 {[%emt 0:01:30]} 26. g3 {[%emt 0:02:30]} Re8+ {[%emt 0:01:30]} 27. Kd3 {[%emt 0:00:30]} Re1 {[%emt 0:00:30]} 28. Be3 {[%emt 0:00:30]} Ke6 {[%emt 0:01:30]} 29. Ke4 {[%emt 0:00:30]} f5+ {[%emt 0:01:30]} 30. Kf4 {[%emt 0:01:30]} Kf6 {[%emt 0:01:30]} (30... Rb1 $17) 31. Kf3 {[%emt 0:02:30]} (31. Rc3 $11 {remains equal.}) 31... g5 {[%emt 0:01:30]} 32. h4 {[%emt 0:04:30]} (32. Rc4 $11 {remains equal.}) 32... gxh4 {[%emt 0:01:30]} 33. gxh4 {[%emt 0:00:30]} Rh1 {[%emt 0:00:30]} 34. Bg5+ {[%emt 0:01:30]} Kg6 {[%emt 0:00:00]} 35. Re2 {[%emt 0:01:30]} Rxd4 {[%emt 0:04:00]} (35... Kf7 $17) 36. Re6+ {[%emt 0:00:30] Double Attack} Kg7 {[%emt 0:01:30]} 37. Re7+ {[%emt 0:00:30]} Kg6 {[%emt 0:00:30]} 38. Re6+ $15 {[%emt 0:00:00] Double Attack} 1/2-1/2

[Event "CRO-ch Youth U19 2020"]
[Site "Vinkovci"]
[Date "2020.07.29"]
[Round "3.16"]
[White "Smetisko, Marija"]
[Black "Juric, Matea"]
[Result "1-0"]
[ECO "C47"]
[WhiteElo "1917"]
[BlackElo "1559"]
[Annotator "ChessBase"]
[PlyCount "63"]
[EventDate "2020.07.28"]
[EventType "swiss"]
[EventCountry "CRO"]
[SourceTitle "playchess.com"]
[Source "ChessBase"]
[SourceQuality "1"]
[TimeControl "5400+30"]

1. e4 {[%emt 0:00:30]} e5 {[%emt 0:00:30]} 2. Nf3 {[%emt 0:00:00]} Nc6 {[%emt 0:00:00]} 3. Be2 {[%emt 0:00:00]} Nf6 {[%emt 0:01:00]} 4. Nc3 {[%emt 0:01:30]} d5 {[%emt 0:05:30]} 5. exd5 {[%emt 0:04:30]} Nxd5 {[%emt 0:00:30]} 6. Nxd5 {[%emt 0:06:30]} Qxd5 {[%emt 0:00:30]} 7. O-O {[%emt 0:02:30]} Bc5 {[%emt 0:04:30]} 8. Re1 {[%emt 0:08:30]} O-O {[%emt 0:04:30]} 9. Bd3 {[%emt 0:01:30]} f5 {[%emt 0:30:30]} 10. b3 {[%emt 0:01:30]} Kh8 {[%emt 0:07:30]} 11. Bb2 {[%emt 0:01:30]} Bd4 {[%emt 0:08:30]} 12. Bxd4 {[%emt 0:11:30]} exd4 {[%emt 0:01:30]} 13. Nh4 {[%emt 0:02:30]} Qf7 {[%emt 0:11:30]} 14. Qf3 {[%emt 0:10:30]} Be6 {[%emt 0:01:25]} 15. Qf4 {[%emt 0:01:30]} Rac8 {[%emt 0:03:41]} 16. Nf3 {[%emt 0:00:30]} Qf6 {[%emt 0:03:39]} 17. Ng5 {[%emt 0:01:30]} Bg8 {[%emt 0:07:12]} 18. a3 {[%emt 0:02:30]} h6 {[%emt 0:01:01]} 19. Nf3 {[%emt 0:01:30]} a6 {[%emt 0:01:15]} 20. Re2 {[%emt 0:00:30]} Qf7 {[%emt 0:04:41]} 21. Ne5 {[%emt 0:01:30]} Nxe5 {[%emt 0:00:11]} 22. Rxe5 {[%emt 0:00:30]} Rfe8 {[%emt 0:00:50]} 23. Qxd4 {[%emt 0:01:30]} Rxe5 {[%emt 0:00:13]} 24. Qxe5 {[%emt 0:00:00]} Bh7 {[%emt 0:00:39]} 25. Re1 {[%emt 0:00:00]} Bg6 {[%emt 0:00:36]} 26. Bc4 {[%emt 0:01:30]} Qf8 {[%emt 0:00:35]} 27. Qe6 {[%emt 0:00:30]} Bh7 {[%emt 0:00:25]} 28. Re5 {[%emt 0:03:30]} Bg8 {[%emt 0:00:31]} 29. Qxg8+ {[%emt 0:00:30]} Qxg8 {[%emt 0:00:06]} 30. Bxg8 {[%emt 0:00:00]} Kxg8 {[%emt 0:00:56]} 31. Rxf5 {[%emt 0:00:00]} Re8 {[%emt 0:00:30]} 32. Kf1 {[%emt 0:00:00]} 1-0

[Event "CRO-ch Youth U19 2020"]
[Site "Vinkovci"]
[Date "2020.07.30"]
[Round "4.9"]
[White "Cotic, Borna"]
[Black "Jakrlin, Mihael"]
[Result "1/2-1/2"]
[ECO "B15"]
[WhiteElo "2049"]
[BlackElo "2183"]
[Annotator "NA"]
[PlyCount "35"]
[EventDate "2020.07.28"]
[EventType "swiss"]
[EventCountry "CRO"]
[SourceTitle "playchess.com"]
[Source "ChessBase"]
[SourceQuality "1"]
[TimeControl "5400+30"]

{[%evp 13,29,-1,-16,-8,-9,-24,-6,-8,0,-7,0,-2,-4,0,0,-11,0,-12]} 1. e4 {[%emt 0:00:30]} c6 {[%emt 0:00:30]} 2. Nc3 {[%emt 0:01:30]} d5 {[%emt 0:00:00]} 3. d4 {[%emt 0:00:30]} dxe4 {[%emt 0:00:00]} 4. Nxe4 {[%emt 0:00:30]} Nf6 {[%emt 0:00:30]} 5. Nxf6+ {[%emt 0:06:30]} exf6 {[%emt 0:03:30]} 6. Bf4 {[%emt 0:04:30]} Bd6 {[%emt 0:06:30]} 7. Qd2 {[%emt 0:14:30]} O-O {[%emt 0:02:30]} 8. Bxd6 {[%emt 0:01:30]} Qxd6 {[%emt 0:00:30]} 9. Nf3 {[%emt 0:03:30]} Re8+ {[%emt 0:01:30]} 10. Be2 {[%emt 0:00:00]} Bg4 {[%emt 0:01:30]} 11. O-O {[%emt 0:01:00]} Nd7 {[%emt 0:00:30]} 12. h3 {[%emt 0:02:30]} Bh5 {[%emt 0:01:30]} 13. Rfe1 {[%emt 0:01:30]} Nf8 {[%emt 0:03:30]} 14. c3 {[%emt 0:05:30]} Rad8 {[%emt 0:05:30]} 15. Nh4 $11 {[%emt 0:02:30]} Rxe2 {[%emt 0:08:30]} 16. Rxe2 {[%emt 0:01:30]} Bxe2 {[%emt 0:00:30]} 17. Qxe2 {[%emt 0:00:00]} Qe6 {[%emt 0:01:30]} 18. Qxe6 {[%emt 0:04:00]} 1/2-1/2

[Event "CRO-ch Youth U19 2020"]
[Site "Vinkovci"]
[Date "2020.07.30"]
[Round "4.10"]
[White "Alfirevic, Duje"]
[Black "Salamon, Viktor"]
[Result "1-0"]
[ECO "C04"]
[WhiteElo "2011"]
[BlackElo "1805"]
[Annotator "ChessBase"]
[PlyCount "117"]
[EventDate "2020.07.28"]
[EventType "swiss"]
[EventCountry "CRO"]
[SourceTitle "playchess.com"]
[Source "ChessBase"]
[SourceQuality "1"]
[TimeControl "5400+30"]

1. e4 {[%emt 0:00:30]} e6 {[%emt 0:00:30]} 2. d4 {[%emt 0:00:00]} d5 {[%emt 0:00:00]} 3. Nd2 {[%emt 0:00:00]} Nc6 {[%emt 0:00:00]} 4. Ngf3 {[%emt 0:01:30]} Nf6 {[%emt 0:00:30]} 5. e5 {[%emt 0:01:30]} Nd7 {[%emt 0:00:30]} 6. c3 {[%emt 0:00:30]} f6 {[%emt 0:00:30]} 7. exf6 {[%emt 0:05:30]} Qxf6 {[%emt 0:00:30]} 8. Bd3 {[%emt 0:02:30]} Bd6 {[%emt 0:01:30]} 9. Qc2 {[%emt 0:09:30]} e5 {[%emt 0:05:30]} 10. dxe5 {[%emt 0:08:30]} Ndxe5 {[%emt 0:02:30]} 11. O-O {[%emt 0:00:30]} Nxd3 {[%emt 0:02:30]} 12. Qxd3 {[%emt 0:00:30]} Ne7 {[%emt 0:01:30]} 13. Nd4 {[%emt 0:07:30]} O-O {[%emt 0:07:30]} 14. N2f3 {[%emt 0:01:30]} a6 {[%emt 0:13:30]} 15. Bg5 {[%emt 0:06:30]} Qf7 {[%emt 0:01:30]} 16. Bxe7 {[%emt 0:06:30]} Qxe7 {[%emt 0:01:30]} 17. Rae1 {[%emt 0:02:30]} Qf6 {[%emt 0:01:30]} 18. b4 {[%emt 0:03:30]} Bg4 {[%emt 0:05:30]} 19. h3 {[%emt 0:04:30]} Bh5 {[%emt 0:03:30]} 20. Re6 {[%emt 0:03:30]} Qd8 {[%emt 0:04:30]} 21. Rfe1 {[%emt 0:03:30]} Bg6 {[%emt 0:02:30]} 22. Rxg6 {[%emt 0:01:30]} hxg6 {[%emt 0:06:30]} 23. Ne6 {[%emt 0:00:00]} Qd7 {[%emt 0:03:30]} 24. Nxf8 {[%emt 0:00:00]} Bxf8 {[%emt 0:01:30]} 25. Qxg6 {[%emt 0:00:30]} Qf7 {[%emt 0:00:30]} 26. Qxf7+ {[%emt 0:02:30]} Kxf7 {[%emt 0:00:00]} 27. g4 {[%emt 0:00:30]} Bd6 {[%emt 0:04:00]} 28. Kg2 {[%emt 0:02:30]} Bf4 {[%emt 0:01:30]} 29. Rd1 {[%emt 0:04:30]} c6 {[%emt 0:01:30]} 30. Rd4 {[%emt 0:02:30]} Bc7 {[%emt 0:02:30]} 31. c4 {[%emt 0:01:25]} Bb6 {[%emt 0:00:30]} 32. c5 {[%emt 0:01:05]} Bc7 {[%emt 0:00:30]} 33. a4 {[%emt 0:00:24]} Re8 {[%emt 0:02:30]} 34. Kf1 {[%emt 0:01:22]} Kf6 {[%emt 0:01:30]} 35. b5 {[%emt 0:02:24]} Ba5 {[%emt 0:06:13]} 36. Rf4+ {[%emt 0:02:41]} Ke6 {[%emt 0:00:57]} 37. bxc6 {[%emt 0:03:38]} bxc6 {[%emt 0:00:01]} 38. Rf5 {[%emt 0:00:31]} Bc3 {[%emt 0:03:14]} 39. h4 {[%emt 0:02:57]} Kd7 {[%emt 0:01:56]} 40. Rf7+ {[%emt 0:01:20]} Kc8 {[%emt 0:01:50]} 41. Rf4 {[%emt 0:01:31]} Kd7 {[%emt 0:02:25]} 42. h5 {[%emt 0:01:08]} Ke6 {[%emt 0:03:08]} 43. Ne1 {[%emt 0:02:38]} d4 {[%emt 0:01:51]} 44. Re4+ {[%emt 0:01:44]} Kd7 {[%emt 0:00:45]} 45. Rxe8 {[%emt 0:00:30]} Kxe8 {[%emt 0:00:01]} 46. Nd3 {[%emt 0:00:00]} Ke7 {[%emt 0:02:26]} 47. f4 {[%emt 0:00:56]} Ke6 {[%emt 0:00:52]} 48. Ke2 {[%emt 0:00:16]} Kd5 {[%emt 0:00:53]} 49. g5 {[%emt 0:00:55]} Ba5 {[%emt 0:00:46]} 50. g6 {[%emt 0:01:10]} Ke6 {[%emt 0:00:41]} 51. Ne5 {[%emt 0:00:50]} Bb4 {[%emt 0:00:20]} 52. Nxc6 {[%emt 0:00:46]} Bxc5 {[%emt 0:00:02]} 53. Kd3 {[%emt 0:00:00]} Kf6 {[%emt 0:00:49]} 54. Nxd4 {[%emt 0:00:19]} Ba3 {[%emt 0:00:08]} 55. Kc4 {[%emt 0:00:14]} Bc1 {[%emt 0:00:16]} 56. Ne2 {[%emt 0:00:14]} Be3 {[%emt 0:00:09]} 57. Kd3 {[%emt 0:00:26]} Bb6 {[%emt 0:00:27]} 58. Ke4 {[%emt 0:00:03]} Bc7 {[%emt 0:00:20]} 59. Nc3 {[%emt 0:00:17]} 1-0

[Event "CRO-ch Youth U19 2020"]
[Site "Vinkovci"]
[Date "2020.07.30"]
[Round "4.12"]
[White "Moric, Ivan"]
[Black "Smetisko, Josip"]
[Result "1-0"]
[ECO "B07"]
[WhiteElo "1726"]
[BlackElo "1940"]
[Annotator "ChessBase"]
[PlyCount "65"]
[EventDate "2020.07.28"]
[EventType "swiss"]
[EventCountry "CRO"]
[SourceTitle "playchess.com"]
[Source "ChessBase"]
[SourceQuality "1"]
[TimeControl "5400+30"]

1. e4 {[%emt 0:00:30]} d6 {[%emt 0:00:30]} 2. d4 {[%emt 0:00:00]} Nf6 {[%emt 0:00:00]} 3. Nc3 {[%emt 0:00:00]} Nbd7 {[%emt 0:00:00]} 4. g3 {[%emt 0:00:30]} e5 {[%emt 0:00:30]} 5. Nge2 {[%emt 0:01:30]} g6 {[%emt 0:08:30]} 6. Bg2 {[%emt 0:00:30]} Bg7 {[%emt 0:00:30]} 7. O-O {[%emt 0:00:30]} O-O {[%emt 0:00:00]} 8. h3 {[%emt 0:02:30]} c6 {[%emt 0:01:00]} 9. Be3 {[%emt 0:03:30]} Nb6 {[%emt 0:02:30]} 10. b3 {[%emt 0:14:30]} Re8 {[%emt 0:02:30]} 11. Qd2 {[%emt 0:01:30]} Qc7 {[%emt 0:12:30]} 12. Rae1 {[%emt 0:09:30]} Be6 {[%emt 0:15:30]} 13. f4 {[%emt 0:03:30]} Rad8 {[%emt 0:07:30]} 14. f5 {[%emt 0:07:30]} Bc8 {[%emt 0:00:30]} 15. g4 {[%emt 0:03:30]} d5 {[%emt 0:03:30]} 16. exd5 {[%emt 0:13:30]} Nfxd5 {[%emt 0:03:30]} 17. Nxd5 {[%emt 0:01:30]} Nxd5 {[%emt 0:00:30]} 18. Bxd5 {[%emt 0:05:30]} Rxd5 {[%emt 0:04:30]} 19. f6 {[%emt 0:03:30]} Bf8 {[%emt 0:17:48]} 20. Bh6 {[%emt 0:05:30]} Kh8 {[%emt 0:05:51]} 21. Nf4 {[%emt 0:04:36]} Bxh6 {[%emt 0:03:14]} 22. Nxd5 {[%emt 0:00:12]} Bxd2 {[%emt 0:05:05]} 23. Nxc7 {[%emt 0:00:06]} Rd8 {[%emt 0:00:24]} 24. Rxe5 {[%emt 0:01:23]} Bd7 {[%emt 0:00:01]} 25. d5 {[%emt 0:04:16]} Ba5 {[%emt 0:02:14]} 26. d6 {[%emt 0:03:31]} Bb6+ {[%emt 0:00:31]} 27. Kg2 {[%emt 0:00:26]} Kg8 {[%emt 0:00:41]} 28. Rfe1 {[%emt 0:02:00]} Bd4 {[%emt 0:00:36]} 29. Re8+ {[%emt 0:00:32]} Bxe8 {[%emt 0:00:23]} 30. Rxe8+ {[%emt 0:00:16]} Rxe8 {[%emt 0:00:04]} 31. Nxe8 {[%emt 0:00:07]} Kf8 {[%emt 0:00:15]} 32. d7 {[%emt 0:00:32]} Bb6 {[%emt 0:00:15]} 33. Nd6 {[%emt 0:00:40]} 1-0

[Event "CRO-ch Youth U19 2020"]
[Site "Vinkovci"]
[Date "2020.07.30"]
[Round "4.13"]
[White "Purini, Bruno"]
[Black "Novosel, Marko"]
[Result "0-1"]
[ECO "D41"]
[WhiteElo "2017"]
[BlackElo "2147"]
[Annotator "RC"]
[PlyCount "104"]
[EventDate "2020.07.28"]
[EventType "swiss"]
[EventCountry "CRO"]
[SourceTitle "playchess.com"]
[Source "ChessBase"]
[SourceQuality "1"]
[TimeControl "5400+30"]

1. e4 {[%emt 0:00:30]} c6 {[%emt 0:00:30]} 2. c4 {[%emt 0:00:00]} d5 {[%emt 0:00:00]} 3. cxd5 {[%emt 0:00:00]} cxd5 {[%emt 0:00:00]} 4. exd5 {[%emt 0:00:30]} Nf6 {[%emt 0:00:30]} 5. Nc3 {[%emt 0:00:00]} Nxd5 {[%emt 0:00:00]} 6. Nf3 {[%emt 0:00:00]} Nxc3 {[%emt 0:00:00]} 7. bxc3 {[%emt 0:00:30]} e6 {[%emt 0:00:30]} 8. d4 {[%emt 0:00:30]} Be7 {[%emt 0:00:30]} 9. Bd3 {[%emt 0:00:30]} Nd7 {[%emt 0:00:30]} 10. O-O {[%emt 0:01:30]} O-O {[%emt 0:00:30]} 11. Qe2 {[%emt 0:03:30]} Qc7 {[%emt 0:07:30]} 12. Bd2 {[%emt 0:03:30]} Nf6 {[%emt 0:06:30]} 13. Ne5 {[%emt 0:02:30]} Bd6 {[%emt 0:20:30]} 14. f4 {[%emt 0:05:30]} b6 {[%emt 0:06:30]} 15. h3 {[%emt 0:09:30]} Bb7 {[%emt 0:01:30]} 16. Rac1 {[%emt 0:08:30]} Rac8 {[%emt 0:00:30]} 17. f5 {[%emt 0:11:30]} Rce8 {[%emt 0:26:30]} 18. Rce1 {[%emt 0:16:30]} exf5 {[%emt 0:15:13]} 19. Rxf5 {[%emt 0:04:30]} Nd7 {[%emt 0:03:47]} 20. Kh1 {[%emt 0:10:30]} Bxe5 {[%emt 0:03:24]} 21. dxe5 {[%emt 0:00:30]} g6 {[%emt 0:02:56]} 22. Rff1 {[%emt 0:08:12]} Rxe5 {[%emt 0:01:02]} 23. Qf2 {[%emt 0:00:51]} Rxe1 {[%emt 0:00:19]} 24. Rxe1 {[%emt 0:00:07]} Nc5 {[%emt 0:00:45]} 25. Bc2 {[%emt 0:00:45]} Qd7 {[%emt 0:00:34]} 26. Kg1 {[%emt 0:01:10]} Re8 {[%emt 0:01:17]} 27. Bh6 {[%emt 0:01:02]} Rxe1+ {[%emt 0:00:57]} 28. Qxe1 {[%emt 0:00:05]} Qc6 {[%emt 0:00:42]} 29. Qf2 {[%emt 0:00:33]} Ne4 {[%emt 0:00:32]} 30. Qd4 {[%emt 0:03:08]} Qc5 {[%emt 0:00:29]} 31. Qxc5 {[%emt 0:01:51]} Nxc5 {[%emt 0:00:05]} 32. Be3 {[%emt 0:00:20]} f5 {[%emt 0:00:12]} 33. Bd4 {[%emt 0:01:04]} Kf7 {[%emt 0:00:09]} 34. Kf2 {[%emt 0:00:15]} Ke6 {[%emt 0:00:17]} 35. g4 {[%emt 0:00:47]} fxg4 {[%emt 0:01:30]} 36. hxg4 {[%emt 0:00:01]} Bd5 {[%emt 0:00:38]} 37. a3 {[%emt 0:00:20]} Ne4+ {[%emt 0:00:38]} 38. Ke3 {[%emt 0:00:53]} Nd6 {[%emt 0:00:11]} 39. Kf4 {[%emt 0:01:04]} Nb5 {[%emt 0:00:26]} 40. Kg5 {[%emt 0:02:03]} Nxd4 {[%emt 0:00:35]} 41. cxd4 {[%emt 0:00:01]} Bf3 {[%emt 0:00:11]} 42. Bb3+ {[%emt 0:00:35]} Kd6 {[%emt 0:00:01]} 43. Kf4 {[%emt 0:02:35]} Bd5 {[%emt 0:01:06]} 44. Bc2 {[%emt 0:00:13]} b5 {[%emt 0:00:29]} 45. g5 {[%emt 0:00:27]} a5 {[%emt 0:00:29]} 46. Ke3 {[%emt 0:00:42]} Ke6 {[%emt 0:00:38]} 47. Kf4 {[%emt 0:00:42]} Ba2 {[%emt 0:00:26]} 48. Ke4 {[%emt 0:00:27]} b4 {[%emt 0:00:24]} 49. axb4 {[%emt 0:00:13]} axb4 {[%emt 0:00:05]} 50. Bd3 {[%emt 0:00:14]} Kd6 {[%emt 0:00:40]} 51. Ke3 {[%emt 0:01:40]} Be6 {[%emt 0:00:35]} 52. Bb1 {[%emt 0:02:08]} b3 {[%emt 0:00:24]} 0-1

[Event "CRO-ch Youth U19 2020"]
[Site "Vinkovci"]
[Date "2020.08.01"]
[Round "5.9"]
[White "Alfirevic, Duje"]
[Black "Cotic, Borna"]
[Result "1/2-1/2"]
[ECO "B47"]
[WhiteElo "2011"]
[BlackElo "2049"]
[Annotator "ChessBase"]
[PlyCount "110"]
[EventDate "2020.07.28"]
[EventType "swiss"]
[EventCountry "CRO"]
[TimeControl "5400+30"]

1. e4 {[%emt 0:00:30]} c5 {[%emt 0:04:30]} 2. Nf3 {[%emt 0:00:00]} e6 {[%emt 0:00:30]} 3. d4 {[%emt 0:00:00]} cxd4 {[%emt 0:00:00]} 4. Nxd4 {[%emt 0:00:30]} Nc6 {[%emt 0:00:00]} 5. Nc3 {[%emt 0:00:00]} Qc7 {[%emt 0:00:30]} 6. f4 {[%emt 0:00:00]} a6 {[%emt 0:01:30]} 7. a3 {[%emt 0:00:30]} Nxd4 {[%emt 0:07:30]} 8. Qxd4 {[%emt 0:00:30]} Ne7 {[%emt 0:00:30]} 9. Be3 {[%emt 0:03:30]} Nc6 {[%emt 0:00:00]} 10. Qd2 {[%emt 0:00:30]} d6 {[%emt 0:05:00]} 11. Be2 {[%emt 0:02:30]} Be7 {[%emt 0:00:30]} 12. O-O {[%emt 0:00:30]} O-O {[%emt 0:05:30]} 13. Rad1 {[%emt 0:01:30]} b5 {[%emt 0:07:30]} 14. Kh1 {[%emt 0:07:30]} Bb7 {[%emt 0:03:30]} 15. Qe1 {[%emt 0:02:30]} b4 {[%emt 0:16:30]} 16. Na4 {[%emt 0:13:30]} bxa3 {[%emt 0:02:30]} 17. Bb6 {[%emt 0:02:30]} Qc8 {[%emt 0:05:30]} 18. bxa3 {[%emt 0:02:30]} Nb8 {[%emt 0:01:30]} 19. Bd4 {[%emt 0:08:30]} Nd7 {[%emt 0:03:30]} 20. Qg3 {[%emt 0:01:30]} g6 {[%emt 0:04:30]} 21. Bd3 {[%emt 0:07:30]} Qc6 {[%emt 0:03:30]} 22. Nc3 {[%emt 0:00:30]} Bf6 {[%emt 0:02:30]} 23. e5 {[%emt 0:07:30]} Bg7 {[%emt 0:09:27]} 24. Ne4 {[%emt 0:01:30]} dxe5 {[%emt 0:04:54]} 25. fxe5 {[%emt 0:00:30]} Rad8 {[%emt 0:00:36]} 26. c3 {[%emt 0:15:30]} Ba8 {[%emt 0:03:11]} 27. Nf6+ {[%emt 0:06:41]} Nxf6 {[%emt 0:00:41]} 28. exf6 {[%emt 0:00:07]} Bh8 {[%emt 0:00:12]} 29. Rde1 {[%emt 0:03:30]} Rfe8 {[%emt 0:01:26]} 30. Re5 {[%emt 0:02:10]} Rd5 {[%emt 0:02:47]} 31. Be4 {[%emt 0:02:37]} Qc4 {[%emt 0:01:06]} 32. Bd3 {[%emt 0:00:18]} Qc8 {[%emt 0:00:16]} 33. h4 {[%emt 0:00:42]} Rxe5 {[%emt 0:02:21]} 34. Bxe5 {[%emt 0:00:48]} Qc6 {[%emt 0:01:37]} 35. Rf2 {[%emt 0:00:02]} Qa4 {[%emt 0:00:36]} 36. Kh2 {[%emt 0:02:49]} Qd1 {[%emt 0:00:44]} 37. Bxa6 {[%emt 0:01:55]} Be4 {[%emt 0:00:01]} 38. Bb5 {[%emt 0:02:31]} Rd8 {[%emt 0:00:02]} 39. Bd4 {[%emt 0:01:00]} Bf5 {[%emt 0:00:43]} 40. Qc7 {[%emt 0:01:02]} Rxd4 {[%emt 0:00:12]} 41. cxd4 {[%emt 0:00:12]} Bxf6 {[%emt 0:00:05]} 42. Qf4 {[%emt 0:00:41]} Bxd4 {[%emt 0:00:56]} 43. Rf1 {[%emt 0:00:51]} Qb3 {[%emt 0:01:24]} 44. Qxd4 {[%emt 0:01:07]} Qxb5 {[%emt 0:00:01]} 45. Rd1 {[%emt 0:00:44]} e5 {[%emt 0:01:23]} 46. a4 {[%emt 0:00:24]} Qb3 {[%emt 0:00:47]} 47. Qd2 {[%emt 0:00:43]} Qxa4 {[%emt 0:00:21]} 48. g3 {[%emt 0:00:03]} Qc2 {[%emt 0:00:26]} 49. Qxc2 {[%emt 0:00:53]} Bxc2 {[%emt 0:00:30]} 50. Re1 {[%emt 0:00:00]} e4 {[%emt 0:00:00]} 51. g4 {[%emt 0:00:17]} Kg7 {[%emt 0:00:06]} 52. Kg3 {[%emt 0:00:13]} h6 {[%emt 0:00:38]} 53. Kf4 {[%emt 0:00:34]} Kf6 {[%emt 0:00:23]} 54. g5+ {[%emt 0:00:24]} hxg5+ {[%emt 0:00:12]} 55. hxg5+ {[%emt 0:00:02]} Kg7 {[%emt 0:00:24]} 1/2-1/2

[Event "CRO-ch Youth U19 2020"]
[Site "Vinkovci"]
[Date "2020.08.01"]
[Round "5.10"]
[White "Jakrlin, Mihael"]
[Black "Baric, Marko"]
[Result "1-0"]
[ECO "A05"]
[WhiteElo "2183"]
[BlackElo "1831"]
[Annotator "ChessBase"]
[PlyCount "65"]
[EventDate "2020.07.28"]
[EventType "swiss"]
[EventCountry "CRO"]
[TimeControl "5400+30"]

1. Nf3 {[%emt 0:00:30]} Nf6 {[%emt 0:02:30]} 2. g3 {[%emt 0:00:30]} g6 {[%emt 0:00:30]} 3. b3 {[%emt 0:01:30]} Bg7 {[%emt 0:00:30]} 4. Bb2 {[%emt 0:00:00]} c5 {[%emt 0:00:00]} 5. Bg2 {[%emt 0:05:00]} d5 {[%emt 0:00:00]} 6. c4 {[%emt 0:02:30]} d4 {[%emt 0:00:30]} 7. b4 {[%emt 0:02:30]} O-O {[%emt 0:00:30]} 8. d3 {[%emt 0:09:30]} Re8 {[%emt 0:01:30]} 9. bxc5 {[%emt 0:15:30]} e5 {[%emt 0:00:30]} 10. O-O {[%emt 0:00:30]} Nfd7 {[%emt 0:02:30]} 11. Nfd2 {[%emt 0:05:30]} Nxc5 {[%emt 0:02:30]} 12. Nb3 {[%emt 0:00:30]} Nba6 {[%emt 0:08:30]} 13. Nxc5 {[%emt 0:07:30]} Nxc5 {[%emt 0:00:30]} 14. Nd2 {[%emt 0:00:30]} Qc7 {[%emt 0:10:30]} 15. Ba3 {[%emt 0:16:30]} Bf8 {[%emt 0:12:30]} 16. Bxc5 {[%emt 0:03:30]} Bxc5 {[%emt 0:01:30]} 17. Ne4 {[%emt 0:01:30]} Be7 {[%emt 0:04:30]} 18. Rb1 {[%emt 0:02:30]} Bd7 {[%emt 0:05:30]} 19. Rxb7 {[%emt 0:00:30]} Qxb7 {[%emt 0:01:30]} 20. Nf6+ {[%emt 0:00:00]} Bxf6 {[%emt 0:00:30]} 21. Bxb7 {[%emt 0:00:00]} Rab8 {[%emt 0:00:30]} 22. Bd5 {[%emt 0:01:30]} Rb2 {[%emt 0:03:30]} 23. Kg2 {[%emt 0:08:18]} Rxa2 {[%emt 0:02:30]} 24. Qb3 {[%emt 0:01:22]} Rxe2 {[%emt 0:04:30]} 25. Rd1 {[%emt 0:01:57]} Bg5 {[%emt 0:08:30]} 26. Bf3 {[%emt 0:01:10]} Rd2 {[%emt 0:00:30]} 27. Rxd2 {[%emt 0:01:08]} Bxd2 {[%emt 0:00:00]} 28. Qa2 {[%emt 0:00:30]} Bb4 {[%emt 0:07:07]} 29. Qxa7 {[%emt 0:00:07]} Re7 {[%emt 0:00:23]} 30. Qb8+ {[%emt 0:00:06]} Re8 {[%emt 0:01:08]} 31. Qxb4 {[%emt 0:00:06]} f5 {[%emt 0:00:13]} 32. Qd6 {[%emt 0:00:27]} Bc8 {[%emt 0:00:21]} 33. Bc6 {[%emt 0:00:20]} 1-0

[Event "CRO-ch Youth U19 2020"]
[Site "Vinkovci"]
[Date "2020.08.01"]
[Round "5.11"]
[White "Salamon, Viktor"]
[Black "Moric, Ivan"]
[Result "0-1"]
[ECO "E92"]
[WhiteElo "1805"]
[BlackElo "1726"]
[Annotator "NA"]
[PlyCount "64"]
[EventDate "2020.07.28"]
[EventType "swiss"]
[EventCountry "CRO"]
[TimeControl "5400+30"]

1. d4 {[%emt 0:00:30]} Nf6 {[%emt 0:00:30]} 2. c4 {[%emt 0:00:00]} g6 {[%emt 0:00:00]} 3. Nc3 {[%emt 0:00:00]} Bg7 {[%emt 0:00:00]} 4. e4 {[%emt 0:00:30]} d6 {[%emt 0:00:30]} 5. Be2 {[%emt 0:00:30]} O-O {[%emt 0:00:30]} 6. Nf3 {[%emt 0:00:30]} e5 {[%emt 0:00:30]} 7. Be3 {[%emt 0:00:30]} Nc6 {[%emt 0:01:30]} 8. d5 {[%emt 0:00:30]} Ne7 {[%emt 0:00:30]} 9. Nd2 {[%emt 0:00:30]} Nd7 {[%emt 0:00:30]} 10. O-O {[%emt 0:03:30]} f5 {[%emt 0:01:30]} 11. f3 {[%emt 0:01:30]} f4 {[%emt 0:00:30]} 12. Bf2 {[%emt 0:00:30]} g5 {[%emt 0:03:30]} 13. b4 {[%emt 0:01:30]} Nf6 {[%emt 0:03:30]} 14. c5 {[%emt 0:02:30]} Ng6 {[%emt 0:03:30]} 15. Nc4 {[%emt 0:01:30]} Rf7 {[%emt 0:02:30]} 16. cxd6 {[%emt 0:01:30]} cxd6 {[%emt 0:00:30]} 17. Nb5 {[%emt 0:01:30]} Bf8 {[%emt 0:01:30]} 18. Nxa7 {[%emt 0:02:30]} g4 {[%emt 0:20:30]} 19. Nxc8 {[%emt 0:09:30]} Rxc8 {[%emt 0:00:30]} 20. Qb3 {[%emt 0:05:30]} g3 {[%emt 0:09:30]} 21. hxg3 {[%emt 0:07:30]} Nh5 {[%emt 0:00:30]} 22. Rfc1 {[%emt 0:13:30]} fxg3 {[%emt 0:08:30]} 23. Be3 {[%emt 0:01:30]} Qh4 {[%emt 0:01:30]} 24. Kf1 {[%emt 0:01:30]} Qh1+ {[%emt 0:01:30]} 25. Bg1 {[%emt 0:00:30]} Nh4 {[%emt 0:11:30]} 26. Ne3 {[%emt 0:04:30]} Rxc1+ {[%emt 0:00:30]} 27. Rxc1 {[%emt 0:00:30]} Bh6 {[%emt 0:05:30]} 28. Rc8+ {[%emt 0:00:30]} Kg7 {[%emt 0:00:00]} 29. Nf5+ {[%emt 0:03:30]} Rxf5 {[%emt 0:03:00]} 30. exf5 {[%emt 0:00:30]} Qxg2+ {[%emt 0:00:30]} 31. Ke1 {[%emt 0:00:30]} Qxg1+ {[%emt 0:00:30]} 32. Bf1 {[%emt 0:00:00]} Qf2+ {[%emt 0:00:00]} 0-1